fUST/lending_fUST_20251125
["ID","MTS","AMOUNT","RATE_DAILY","PERIOD"]
[394827677,1764000064142,171.195,0.0001212,6]
[394827679,1764000155418,202.86441474,0.0002,30]
[394827680,1764000222348,1000.0,0.00020219,59]
[394827681,1764000223917,166.84979466,4.476e-05,2]
[394827682,1764000246175,166.84979466,4.498e-05,2]
[394827683,1764000268576,152.30041068,4.498e-05,2]
[394827685,1764000507744,151.0,0.0002,30]
[394827686,1764000602698,-166.84979466,4.548e-05,2]
[394827687,1764000619655,-1200.0,4.552e-05,2]
[394827688,1764000619679,-300.0,4.552e-05,2]
[394827689,1764000619704,-300.0,4.552e-05,2]
[394827690,1764000619728,-300.0,4.552e-05,2]
[394827691,1764000619752,-1200.0,4.552e-05,2]
[394827692,1764000619779,-503162.25209613,4.553e-05,2]
[394827762,1764000638033,-443.72775251,4.633e-05,2]
[394827765,1764000638043,-500.0,4.633e-05,2]
[394827767,1764000638053,-500.0,4.633e-05,2]
[394827769,1764000638062,-500.0,4.633e-05,2]
[394827770,1764000638072,-500.0,4.633e-05,2]
[394827772,1764000638081,-14016.9306186,4.789e-05,2]
[394827774,1764000638091,-13385.7649633,4.789e-05,2]
[394827776,1764000638100,-250.0,4.937e-05,2]
[394827778,1764000638110,-500.0,5e-05,2]
[394827781,1764000638121,-500.0,5e-05,2]
[394827783,1764000638130,-500.0,5e-05,2]
[394827785,1764000638141,-500.0,5e-05,2]
[394827787,1764000638150,-500.0,5e-05,2]
[394827789,1764000638160,-500.0,5e-05,2]
[394827791,1764000638169,-500.0,5e-05,2]
[394827792,1764000638179,-500.0,5e-05,2]
[394827794,1764000638188,-500.0,5e-05,2]
[394827796,1764000638198,-500.0,5e-05,2]
[394827798,1764000638208,-500.0,5e-05,2]
[394827800,1764000638218,-500.0,5e-05,2]
[394827823,1764000638429,-500.0,5e-05,2]
[394827825,1764000638441,-500.0,5e-05,2]
[394827827,1764000638451,-500.0,5e-05,2]
[394827829,1764000638461,-500.0,5e-05,2]
[394827831,1764000638470,-500.0,5e-05,2]
[394827833,1764000638479,-500.0,5e-05,2]
[394827835,1764000638493,-500.0,5e-05,2]
[394827837,1764000638503,-500.0,5e-05,2]
[394827839,1764000638512,-500.0,5e-05,2]
[394827841,1764000638521,-500.0,5e-05,2]
[394827843,1764000638531,-500.0,5e-05,2]
[394827845,1764000638541,-500.0,5e-05,2]
[394827847,1764000638551,-500.0,5e-05,2]
[394827849,1764000638561,-574.14887512,5e-05,2]
[394827851,1764000638570,-500.0,5e-05,2]
[394827853,1764000638580,-500.0,5e-05,2]
[394827855,1764000638590,-500.0,5e-05,2]
[394827857,1764000638600,-500.0,5e-05,2]
[394827859,1764000638610,-500.0,5e-05,2]
[394827861,1764000638619,-500.0,5e-05,2]
[394827863,1764000638628,-500.0,5e-05,2]
[394827865,1764000638638,-500.0,5e-05,2]
[394827867,1764000638647,-500.0,5e-05,2]
[394827869,1764000638657,-500.0,5e-05,2]
[394827871,1764000638667,-500.0,5e-05,2]
[394827873,1764000638676,-500.0,5e-05,2]
[394827875,1764000638687,-500.0,5e-05,2]
[394827876,1764000638697,-500.0,5e-05,2]
[394827878,1764000638708,-500.0,5e-05,2]
[394827881,1764000638718,-500.0,5e-05,2]
[394827883,1764000638728,-500.0,5e-05,2]
[394827885,1764000638738,-500.0,5e-05,2]
[394827886,1764000638748,-500.0,5e-05,2]
[394827888,1764000638758,-500.0,5e-05,2]
[394827890,1764000638767,-500.0,5e-05,2]
[394827893,1764000638777,-500.0,5e-05,2]
[394827895,1764000638786,-500.0,5e-05,2]
[394827896,1764000638796,-500.0,5e-05,2]
[394827898,1764000638806,-500.0,5e-05,2]
[394827900,1764000638815,-157.41488751,5e-05,2]
[394827902,1764000638824,-500.0,5e-05,2]
[394827904,1764000638833,-500.0,5e-05,2]
[394827906,1764000638843,-500.0,5e-05,2]
[394827908,1764000638852,-175.8547845,5e-05,2]
[394827910,1764000638862,-500.0,5e-05,2]
[394827912,1764000638871,-500.0,5e-05,2]
[394827914,1764000638881,-500.0,5e-05,2]
[394827916,1764000638890,-500.0,5e-05,2]
[394827918,1764000638900,-500.0,5e-05,2]
[394827920,1764000638910,-500.0,5e-05,2]
[394827922,1764000638919,-500.0,5e-05,2]
[394827924,1764000638929,-500.0,5e-05,2]
[394827926,1764000638941,-500.0,5e-05,2]
[394827928,1764000638951,-500.0,5e-05,2]
[394827930,1764000638961,-500.0,5e-05,2]
[394827932,1764000638971,-500.0,5e-05,2]
[394827934,1764000638981,-500.0,5e-05,2]
[394827935,1764000638991,-500.0,5e-05,2]
[394827938,1764000639001,-500.0,5e-05,2]
[394827939,1764000639010,-500.0,5e-05,2]
[394827941,1764000639020,-500.0,5e-05,2]
[394827944,1764000639031,-500.0,5e-05,2]
[394827946,1764000639041,-500.0,5e-05,2]
[394827947,1764000639051,-500.0,5e-05,2]
[394827950,1764000639062,-500.0,5e-05,2]
[394827952,1764000639072,-500.0,5e-05,2]
[394827954,1764000639082,-500.0,5e-05,2]
[394827956,1764000639092,-500.0,5e-05,2]
[394827958,1764000639102,-500.0,5e-05,2]
[394827959,1764000639111,-500.0,5e-05,2]
[394827961,1764000639121,-500.0,5e-05,2]
[394827964,1764000639131,-500.0,5e-05,2]
[394827966,1764000639141,-500.0,5e-05,2]
[394827967,1764000639150,-500.0,5e-05,2]
[394827969,1764000639161,-500.0,5e-05,2]
[394827971,1764000639171,-500.0,5e-05,2]
[394827974,1764000639181,-350.0,5e-05,2]
[394827976,1764000639193,-500.0,5e-05,2]
[394827978,1764000639203,-500.0,5e-05,2]
[394827980,1764000639213,-606.98580513,5e-05,2]
[394827982,1764000639223,-500.0,5e-05,2]
[394827984,1764000639233,-500.0,5e-05,2]
[394827986,1764000639243,-500.0,5e-05,2]
[394827988,1764000639254,-500.0,5e-05,2]
[394827990,1764000639264,-541.57042403,5e-05,2]
[394827993,1764000639274,-500.0,5e-05,2]
[394827995,1764000639287,-500.0,5e-05,2]
[394827997,1764000639297,-500.0,5e-05,2]
[394827999,1764000639307,-450.0,5e-05,2]
[394828001,1764000639317,-6050.77664955,5e-05,2]
[394828003,1764000639327,-1000.0,5.181e-05,2]
[394828005,1764000639338,-164.88370563,5.181e-05,2]
[394828007,1764000639347,-1000.0,5.181e-05,2]
[394828009,1764000639357,-500.0,5.274e-05,2]
[394828011,1764000639366,-500.0,5.479e-05,2]
[394828013,1764000639376,-176.39677593,5.479e-05,2]
[394828015,1764000639387,-300.0,5.484e-05,2]
[394828017,1764000639396,-300.0,5.484e-05,2]
[394828019,1764000639408,-300.0,5.484e-05,2]
[394828021,1764000639419,-300.0,5.484e-05,2]
[394828023,1764000639428,-300.0,5.484e-05,2]
[394828025,1764000639437,-300.0,5.484e-05,2]
[394828027,1764000639447,-300.0,5.484e-05,2]
[394828029,1764000639456,-300.0,5.484e-05,2]
[394828031,1764000639467,-300.0,5.484e-05,2]
[394828033,1764000639475,-300.0,5.484e-05,2]
[394828035,1764000639486,-300.0,5.484e-05,2]
[394828037,1764000639496,-300.0,5.484e-05,2]
[394828039,1764000639505,-300.0,5.484e-05,2]
[394828041,1764000639514,-300.0,5.484e-05,2]
[394828043,1764000639524,-300.0,5.484e-05,2]
[394828045,1764000639533,-600.0,5.485e-05,2]
[394828047,1764000639542,-3127.5999737,5.529e-05,2]
[394828049,1764000639552,-2986.7678799,5.529e-05,2]
[394828051,1764000639561,-500.0,5.548e-05,2]
[394828053,1764000639570,-697.861883,5.694e-05,2]
[394828055,1764000639580,-666.4379953,5.694e-05,2]
[394828056,1764000639589,-791.16085707,5.728e-05,2]
[394828058,1764000639598,-263.5388158,5.75e-05,2]
[394828060,1764000639608,-500.0,5.822e-05,2]
[394828062,1764000639618,-720.0,6.033e-05,2]
[394828064,1764000639627,-195.15252392,6.096e-05,2]
[394828066,1764000639636,-1781.35,6.176e-05,2]
[394828068,1764000639646,-254.48,6.283e-05,2]
[394828070,1764000639655,-254.48,6.289e-05,2]
[394828072,1764000639665,-254.47,6.295e-05,2]
[394828074,1764000639674,-414.0,6.346e-05,2]
[394828076,1764000639683,-732.36172569,6.38e-05,2]
[394828078,1764000639696,-150.303,6.541e-05,2]
[394828080,1764000639705,-150.0,6.541e-05,2]
[394828082,1764000639714,-150.173,6.541e-05,2]
[394828084,1764000639724,-150.135,6.541e-05,2]
[394828086,1764000639734,-150.152,6.541e-05,2]
[394828088,1764000639743,-630.0,6.541e-05,2]
[394828090,1764000639752,-2152.0,6.541e-05,2]
[394828092,1764000639761,-1026.957,6.541e-05,2]
[394828094,1764000639770,-196.88275769,6.548e-05,2]
[394828096,1764000639779,-864.0,6.636e-05,2]
[394828098,1764000639788,-1000.0,7.3e-05,2]
[394828100,1764000639798,-1000.0,8.03e-05,2]
[394828103,1764000639808,-244.0,8.03e-05,2]
[394828104,1764000639817,-540.95832772,8.219e-05,2]
[394828107,1764000639827,-226.91572073,8.548e-05,2]
[394828108,1764000639836,-1000.0,8.833e-05,2]
[394828110,1764000639846,-492.0,8.833e-05,2]
[394828113,1764000639856,-4625.80195045,9e-05,2]
[394828115,1764000639865,-414.0,9.346e-05,2]
[394828117,1764000639875,-890.15988082,9.4e-05,3]
[394828119,1764000639885,-263.5388158,9.435e-05,2]
[394828121,1764000639894,-150.0,9.541e-05,2]
[394828122,1764000639904,-630.0,9.541e-05,2]
[394828124,1764000639913,-2152.0,9.541e-05,2]
[394828127,1764000639923,-989.0,9.541e-05,2]
[394828128,1764000639932,-1000.0,9.716e-05,2]
[394828130,1764000639941,-791.0,9.716e-05,2]
[394828131,1764000639951,-1000.0,9.8e-05,2]
[394828132,1764000639960,-1000.0,9.8e-05,2]
[394828133,1764000639968,-1000.0,9.8e-05,2]
[394828134,1764000639978,-1000.0,9.8e-05,2]
[394828135,1764000639987,-1000.0,9.8e-05,2]
[394828136,1764000639997,-1000.0,9.8e-05,2]
[394828137,1764000640006,-1000.0,9.8e-05,2]
[394828138,1764000640015,-1000.0,9.8e-05,2]
[394828139,1764000640024,-1000.0,9.8e-05,2]
[394828140,1764000640034,-1000.0,9.8e-05,2]
[394828141,1764000640042,-484.045721,9.8e-05,2]
[394828142,1764000640051,-202.86441474,9.808e-05,2]
[394828143,1764000640060,-287.97114422,0.0001,2]
[394828145,1764000640069,-169.0,0.0001,2]
[394828147,1764000640079,-169.0,0.0001,2]
[394828149,1764000640088,-220.31,0.0001,2]
[394828151,1764000640098,-187.78006525,0.0001,2]
[394828153,1764000640107,-159.131,0.00010144,2]
[394828155,1764000640118,-256.94868377,0.00010548,2]
[394828157,1764000640127,-194.72792766,0.00010548,2]
[394828159,1764000640137,-422.7810347,0.00010618,2]
[394828161,1764000640147,-1000.0,0.00010688,2]
[394828163,1764000640156,-1000.0,0.00010688,2]
[394828165,1764000640166,-500.0,0.00010958,2]
[394828167,1764000640175,-1656.17,0.00010958,2]
[394828169,1764000640185,-1656.17,0.00010958,2]
[394828171,1764000640195,-1656.17,0.00010958,2]
[394828173,1764000640205,-1656.17,0.00010958,2]
[394828175,1764000640215,-1656.17,0.00010958,2]
[394828177,1764000640224,-1656.17,0.00010958,2]
[394828179,1764000640234,-1656.17,0.00010958,2]
[394828181,1764000640243,-1656.17,0.00010958,2]
[394828184,1764000640252,-1656.17,0.00010958,2]
[394828186,1764000640261,-1656.17,0.00010958,2]
[394828188,1764000640270,-1656.17,0.00010958,2]
[394828191,1764000640280,-1656.17,0.00010958,2]
[394828194,1764000640289,-1656.17,0.00010958,2]
[394828196,1764000640299,-1656.17,0.00010958,2]
[394828198,1764000640308,-1656.17,0.00010958,2]
[394828200,1764000640317,-1656.17,0.00010958,2]
[394828202,1764000640327,-1656.17,0.00010958,2]
[394828204,1764000640336,-1656.17,0.00010958,2]
[394828206,1764000640345,-1656.17,0.00010958,2]
[394828208,1764000640355,-1656.17,0.00010958,2]
[394828210,1764000640364,-1656.17,0.00010958,2]
[394828212,1764000640374,-1656.17,0.00010958,2]
[394828214,1764000640383,-1656.17,0.00010958,2]
[394828216,1764000640392,-1656.24228799,0.00010958,2]
[394828218,1764000640403,-5710.4229157,0.00010959,2]
[394828220,1764000640416,-500.0,0.00010959,2]
[394828222,1764000640425,-489.77337736,0.00010959,2]
[394828224,1764000640433,-500.0,0.00010959,2]
[394828226,1764000640444,-500.0,0.00010959,2]
[394828228,1764000640454,-500.0,0.00010959,2]
[394828230,1764000640463,-503.88916398,0.00010959,2]
[394828231,1764000640473,-500.0,0.00010959,2]
[394828233,1764000640484,-500.0,0.00010959,2]
[394828236,1764000640494,-500.0,0.00010959,2]
[394828237,1764000640503,-500.0,0.00010959,2]
[394828239,1764000640512,-500.0,0.00010959,2]
[394828241,1764000640522,-500.0,0.00010959,2]
[394828243,1764000640531,-500.0,0.00010959,2]
[394828246,1764000640540,-500.0,0.00010959,2]
[394828247,1764000640550,-500.0,0.00010959,2]
[394828249,1764000640560,-500.0,0.00010959,2]
[394828251,1764000640570,-500.0,0.00010959,2]
[394828254,1764000640580,-500.0,0.00010959,2]
[394828256,1764000640589,-500.0,0.00010959,2]
[394828258,1764000640598,-500.0,0.00010959,2]
[394828260,1764000640608,-500.0,0.00010959,2]
[394828262,1764000640617,-500.0,0.00010959,2]
[394828264,1764000640626,-500.0,0.00010959,2]
[394828266,1764000640636,-500.0,0.00010959,2]
[394828267,1764000640645,-502.72241478,0.00010959,2]
[394828269,1764000640654,-500.0,0.00010959,2]
[394828272,1764000640664,-500.0,0.00010959,2]
[394828274,1764000640673,-500.0,0.00010959,2]
[394828276,1764000640682,-900.0,0.00011,2]
[394828277,1764000640694,-201.93286099,0.00011096,2]
[394828279,1764000640703,-151.0,0.000113,2]
[394828281,1764000640713,-151.0,0.000114,2]
[394828283,1764000640724,-354.5,0.00011456,2]
[394828285,1764000640733,-734.5,0.00011456,2]
[394828287,1764000640742,-151.0,0.000115,2]
[394828289,1764000640751,-151.0,0.000115,2]
[394828291,1764000640761,-209.40437684,0.00011644,2]
[394828293,1764000640771,-1000.0,0.00011757,2]
[394828295,1764000640780,-1000.0,0.00011757,2]
[394828297,1764000640790,-579.0,0.00011757,2]
[394828299,1764000640799,-151.0,0.000118,2]
[394828301,1764000640808,-151.0,0.000118,2]
[394828303,1764000640817,-151.0,0.000118,2]
[394828305,1764000640827,-900.0,0.00012,3]
[394828307,1764000640836,-5397.0,0.00012,2]
[394828309,1764000640845,-500.0,0.00012054,2]
[394828311,1764000640854,-151.0,0.000121,2]
[394828313,1764000640863,-151.0,0.000121,2]
[394828315,1764000640872,-151.0,0.00012119,2]
[394828317,1764000640881,-217.15233878,0.00012192,2]
[394828318,1764000640890,-151.0,0.000122,2]
[394828320,1764000640899,-202.86441474,0.00012266,2]
[394828322,1764000640909,-151.0,0.000123,2]
[394828324,1764000640918,-151.0,0.000123,2]
[394828326,1764000640927,-282.12,0.00012329,2]
[394828328,1764000640936,-1061.4,0.00012329,2]
[394828329,1764000640947,-884.5,0.00012329,2]
[394828330,1764000640956,-737.08,0.00012329,2]
[394828331,1764000640966,-614.23,0.00012329,2]
[394828332,1764000640975,-511.86,0.00012329,2]
[394828333,1764000640985,-426.55,0.00012329,2]
[394828334,1764000640994,-355.46,0.00012329,2]
[394828335,1764000641004,-296.22,0.00012329,2]
[394828336,1764000641013,-246.85,0.00012329,2]
[394828337,1764000641022,-205.71,0.00012329,2]
[394828338,1764000641032,-171.42,0.00012329,2]
[394828339,1764000641041,-857.13,0.00012329,2]
[394828340,1764000641051,-414.0,0.00012346,2]
[394828341,1764000641060,-353.36441271,0.00012498,2]
[394828342,1764000641069,-90.93936743,0.00012498,2]
[394828343,1764000641084,-69.06063257,0.00012498,2]
[394828344,1764000641093,-160.0,0.00012498,2]
[394828345,1764000641103,-2000.0,0.000125,2]
[394828346,1764000641111,-1794.50753205,0.000125,2]
[394828353,1764000641363,-846.77436772,0.000125,2]
[394828354,1764000641372,-2119.622,0.00012541,2]
[394828355,1764000641381,-989.0,0.00012541,2]
[394828356,1764000641390,-109.26374663,0.00012548,2]
[394828357,1764000641401,-177.71790018,0.00012548,2]
[394828358,1764000641415,-151.0,0.000126,2]
[394828359,1764000641424,-151.0,0.000126,2]
[394828360,1764000641434,-151.0,0.000126,2]
[394828361,1764000641443,-151.0,0.000126,2]
[394828362,1764000641453,-225.18697532,0.0001274,2]
[394828363,1764000641462,-151.0,0.000129,2]
[394828364,1764000641472,-151.0,0.000129,2]
[394828365,1764000641482,-732.36172569,0.00012924,2]
[394828366,1764000641492,-1000.0,0.00012932,2]
[394828367,1764000641501,-1000.0,0.00012932,2]
[394828368,1764000641511,-1000.0,0.00012932,2]
[394828369,1764000641521,-912.0,0.00013,4]
[394828371,1764000641530,-151.0,0.00013,2]
[394828373,1764000641539,-151.0,0.00013,2]
[394828375,1764000641548,-263.80235462,0.0001312,2]
[394828376,1764000641557,-316.63,0.0001315,2]
[394828378,1764000641566,-151.0,0.000132,2]
[394828380,1764000641576,-208.82235514,0.000132,2]
[394828381,1764000641584,-151.0,0.000132,2]
[394828382,1764000641593,-151.0,0.000132,2]
[394828383,1764000641602,-320.29910906,0.00013288,2]
[394828384,1764000641612,-151.0,0.000133,2]
[394828385,1764000641621,-151.0,0.000133,2]
[394828386,1764000641631,-151.0,0.000134,2]
[394828387,1764000641641,-151.0,0.000134,2]
[394828388,1764000641650,-151.0,0.000134,2]
[394828389,1764000641660,-600.0,0.0001344,2]
[394828390,1764000641669,-600.0,0.0001358,2]
[394828391,1764000641679,-151.0,0.000136,2]
[394828392,1764000641688,-500.0,0.00013673,2]
[394828393,1764000641699,-610.81772097,0.00013673,2]
[394828394,1764000641708,-500.0,0.00013673,2]
[394828395,1764000641718,-500.0,0.00013673,2]
[394828396,1764000641727,-162.37595216,0.00013673,2]
[394828397,1764000641895,-500.0,0.00013673,2]
[394828398,1764000641905,-500.0,0.00013673,2]
[394828399,1764000641915,-500.0,0.00013673,2]
[394828400,1764000641925,-500.0,0.00013673,2]
[394828401,1764000641936,-502.00112866,0.00013698,2]
[394828402,1764000641947,-517.2,0.00013698,2]
[394828403,1764000641956,-517.2,0.00013698,2]
[394828404,1764000641965,-80.69749057,0.00013698,2]
[394828405,1764000641976,-436.50250943,0.00013698,2]
[394828406,1764000641985,-517.2,0.00013698,2]
[394828407,1764000641995,-517.2,0.00013698,2]
[394828408,1764000642004,-517.2,0.00013698,2]
[394828409,1764000642014,-517.2,0.00013698,2]
[394828410,1764000642023,-517.2,0.00013698,2]
[394828411,1764000642033,-517.2,0.00013698,2]
[394828412,1764000642043,-517.2,0.00013698,2]
[394828413,1764000642052,-517.2,0.00013698,2]
[394828414,1764000642062,-517.2,0.00013698,2]
[394828415,1764000642071,-517.2,0.00013698,2]
[394828416,1764000642080,-517.2,0.00013698,2]
[394828417,1764000642089,-517.2,0.00013698,2]
[394828418,1764000642099,-517.2,0.00013698,2]
[394828419,1764000642108,-517.2,0.00013698,2]
[394828420,1764000642118,-190.42649057,0.00013698,2]
[394828421,1764000642130,-326.77350943,0.00013698,2]
[394828422,1764000642139,-517.2,0.00013698,2]
[394828423,1764000642149,-517.2,0.00013698,2]
[394828424,1764000642159,-517.2,0.00013698,2]
[394828425,1764000642168,-517.2,0.00013698,2]
[394828426,1764000642178,-517.2,0.00013698,2]
[394828427,1764000642188,-517.32074989,0.00013698,2]
[394828428,1764000642199,-500.0,0.00013698,2]
[394828429,1764000642208,-500.0,0.00013698,2]
[394828430,1764000642217,-500.0,0.00013698,2]
[394828431,1764000642227,-500.0,0.00013698,2]
[394828432,1764000642237,-500.0,0.00013698,2]
[394828433,1764000642246,-500.0,0.00013698,2]
[394828434,1764000642256,-500.0,0.00013698,2]
[394828435,1764000642266,-330.90605326,0.00013698,2]
[394828436,1764000642276,-500.0,0.00013698,2]
[394828437,1764000642286,-500.0,0.00013698,2]
[394828438,1764000642295,-202.49326811,0.00013698,2]
[394828439,1764000642304,-1000.0,0.00013698,2]
[394828440,1764000642314,-1000.0,0.00013698,2]
[394828441,1764000642324,-1000.0,0.00013698,2]
[394828442,1764000642333,-1000.0,0.00013698,2]
[394828443,1764000642343,-4891.31,0.00013698,2]
[394828445,1764000642352,-4891.31,0.00013698,2]
[394828446,1764000642361,-4891.31,0.00013698,2]
[394828447,1764000642371,-4891.31,0.00013698,2]
[394828448,1764000642380,-4891.31,0.00013698,2]
[394828449,1764000642389,-4891.31,0.00013698,2]
[394828450,1764000642400,-4891.31,0.00013698,2]
[394828451,1764000642412,-3297.33641931,0.00013698,2]
[394828452,1764000642424,-852.99054321,0.00013698,2]
[394828453,1764000642436,-740.98303748,0.00013698,2]
[394828454,1764000642448,-4891.31,0.00013698,2]
[394828455,1764000642457,-4891.31,0.00013698,2]
[394828456,1764000642466,-4891.31,0.00013698,2]
[394828457,1764000642475,-2597.37866832,0.00013698,2]
[394828458,1764000642487,-721.77980252,0.00013698,2]
[394828473,1764000646093,-1572.15152916,0.00013698,2]
[394828474,1764000646103,-4891.31,0.00013698,2]
[394828475,1764000646113,-4891.31,0.00013698,2]
[394828476,1764000646122,-1803.28749216,0.00013698,2]
[394828477,1764000646134,-3088.02250784,0.00013698,2]
[394828478,1764000646143,-4891.31,0.00013698,2]
[394828479,1764000646152,-4891.31,0.00013698,2]
[394828480,1764000646162,-2620.13122442,0.00013698,2]
[394828481,1764000729151,158.904971,0.00014,10]
[394828482,1764000754195,154.563363,0.0002,30]
[394828483,1764000758236,154.563363,0.00014,10]
[394828484,1764000758524,154.563363,0.00014,10]
[394828485,1764000758813,154.563363,0.00014,10]
[394828486,1764000759115,154.563363,0.00014,10]
[394828487,1764000788289,158.54241664,0.0002,30]
[394828488,1764000789415,159.26412359,0.0002,30]
[394828489,1764000791635,151.0,0.0002,30]
[394828491,1764000894722,151.0,0.0002,30]
[394828492,1764000898694,151.0,0.0002,30]
[394828512,1764001267229,150.0,4.998e-05,2]
[394828513,1764001275535,150.0,4.998e-05,2]
[394828514,1764001284028,150.0,4.998e-05,2]
[394828515,1764001299202,150.0,4.998e-05,2]
[394828518,1764001306990,150.0,4.998e-05,2]
[394828519,1764001322307,150.0,4.998e-05,2]
[394828520,1764001326787,158.904971,0.00014,10]
[394828521,1764001330174,150.0,4.998e-05,2]
[394828522,1764001345264,150.0,4.998e-05,2]
[394828523,1764001353192,150.0,4.998e-05,2]
[394828524,1764001353664,154.563364,0.00014,10]
[394828525,1764001353975,154.563364,0.00014,10]
[394828526,1764001354313,154.563364,0.00014,10]
[394828527,1764001368886,150.0,4.998e-05,2]
[394828528,1764001376907,150.0,4.998e-05,2]
[394828530,1764001392168,150.0,4.998e-05,2]
[394828531,1764001400073,150.0,4.998e-05,2]
[394828533,1764001415237,150.0,4.998e-05,2]
[394828534,1764001423013,150.0,4.998e-05,2]
[394828535,1764001430071,154.77448112,0.0002,30]
[394828536,1764001445379,150.0,4.998e-05,2]
[394828537,1764001467650,150.0,4.998e-05,2]
[394828538,1764001490420,150.0,5.023e-05,2]
[394828539,1764001603111,-150.0,5.073e-05,2]
[394828540,1764001603133,-18.19308826,5.098e-05,2]
[394828544,1764001699023,276.05832039,0.0002,30]
[394828558,1764001831950,-208.0,5.098e-05,2]
[394828559,1764001831959,-300.0,5.098e-05,2]
[394828560,1764001831968,-1200.0,5.098e-05,2]
[394828561,1764001831978,-150.0,5.099e-05,2]
[394828562,1764001831987,-6.47636112,5.099e-05,2]
[394828564,1764001832140,-293.52363888,5.099e-05,2]
[394828565,1764001832150,-300.0,5.099e-05,2]
[394828566,1764001832159,-282.37540698,5.099e-05,2]
[394828602,1764001838293,-17.62459302,5.099e-05,2]
[394828604,1764001838304,-300.0,5.099e-05,2]
[394828607,1764001838315,-300.0,5.099e-05,2]
[394828609,1764001838326,-300.0,5.099e-05,2]
[394828611,1764001838337,-2.38526208,5.099e-05,2]
[394828613,1764001838349,-297.61473792,5.099e-05,2]
[394828615,1764001838360,-300.0,5.099e-05,2]
[394828617,1764001838370,-27.96631215,5.099e-05,2]
[394828779,1764001840262,-272.03368785,5.099e-05,2]
[394828780,1764001840271,-300.0,5.099e-05,2]
[394828781,1764001840281,-300.0,5.099e-05,2]
[394828782,1764001840290,-300.0,5.099e-05,2]
[394828783,1764001840299,-300.0,5.099e-05,2]
[394828784,1764001840309,-300.0,5.099e-05,2]
[394828785,1764001840318,-300.0,5.099e-05,2]
[394828786,1764001840328,-600.0,5.2e-05,2]
[394828787,1764001840337,-720.0,5.72e-05,2]
[394828788,1764001840347,-864.0,6.292e-05,2]
[394828790,1764001840356,-1000.0,6.921e-05,2]
[394828792,1764001840365,-177.0,7.099e-05,2]
[394828794,1764001840374,-989.0,7.266e-05,2]
[394828796,1764001840384,-414.0,7.266e-05,2]
[394828798,1764001840394,-1000.0,7.613e-05,2]
[394828800,1764001840404,-244.0,7.613e-05,2]
[394828802,1764001840413,-1000.0,8.375e-05,2]
[394828804,1764001840422,-492.0,8.375e-05,2]
[394828805,1764001840432,-204.0,9.099e-05,2]
[394828807,1764001840441,-1000.0,9.212e-05,2]
[394828809,1764001840450,-791.0,9.212e-05,2]
[394828811,1764001840459,-500.0,9.999e-05,2]
[394828813,1764001840468,-500.0,9.999e-05,2]
[394828815,1764001840477,-500.0,9.999e-05,2]
[394828817,1764001840486,-500.0,9.999e-05,2]
[394828819,1764001840496,-400.77620057,9.999e-05,2]
[394828821,1764001840506,-500.0,9.999e-05,2]